bitfinex-derivatives/quotes_BTCF0:USTF0_20250728
["timestamp","ask_amount","ask_price","bid_price","bid_amount"]
[1753722329916,0.22482051,118040.0,118030.0,1.53076581]
[1753722330420,0.22482051,118040.0,118030.0,1.49898581]
[1753722330421,0.27480051,118040.0,118030.0,1.49898581]
[1753722330610,0.60655051,118040.0,118030.0,0.84892581]
[1753722330918,0.60655051,118040.0,118030.0,1.06491678]
[1753722333009,0.60655051,118040.0,118030.0,1.09669678]
[1753722333314,0.60655051,118040.0,118030.0,1.53052581]
[1753722333619,0.22482051,118040.0,118030.0,1.69997481]
[1753722335318,0.22482051,118040.0,118030.0,1.72248721]
[1753722336518,0.22482051,118040.0,118030.0,1.55303821]
[1753722337117,0.27480051,118040.0,118030.0,1.55303821]
[1753722340824,0.22482051,118040.0,118030.0,1.55303821]
[1753722341022,0.22482051,118040.0,118030.0,1.72248721]
[1753722341322,0.22482051,118040.0,118030.0,1.55303821]
[1753722341527,0.22482051,118040.0,118030.0,1.72248721]
[1753722342421,0.18607796,118040.0,118030.0,1.72248721]
[1753722342625,0.18607796,118040.0,118030.0,1.74533627]
[1753722344224,0.18607796,118040.0,118030.0,2.00823627]
[1753722346119,0.23605796,118040.0,118030.0,1.83878727]
[1753722346419,0.26914796,118040.0,118030.0,1.83878727]
[1753722346921,0.42750796,118040.0,118030.0,1.83878727]
[1753722347122,0.49557796,118040.0,118030.0,1.40495824]
[1753722347327,0.49557796,118040.0,118030.0,2.00823627]
[1753722347527,0.31697796,118040.0,118030.0,2.00823627]
[1753722347728,0.26914796,118040.0,118030.0,1.83878727]
[1753722347921,0.26914796,118040.0,118030.0,1.40495824]
[1753722348122,0.26914796,118040.0,118030.0,1.83878727]
[1753722348727,0.56780796,118040.0,118030.0,1.80696727]
[1753722349031,0.56780796,118040.0,118030.0,1.83874727]
[1753722349328,0.56780796,118040.0,118030.0,2.00819627]
[1753722349621,0.56780796,118040.0,118030.0,1.83874727]
[1753722355335,0.56780796,118040.0,118030.0,2.00819627]
[1753722355729,0.56780796,118040.0,118030.0,1.83874727]
[1753722356235,0.26914796,118040.0,118030.0,2.00819627]
[1753722358036,0.26914796,118040.0,118030.0,1.74529627]
[1753722358942,0.26914796,118040.0,118030.0,1.57584727]
[1753722359242,0.26914796,118040.0,118030.0,1.74529627]
[1753722359833,0.0423532,118060.0,118040.0,0.2541399]
[1753722360039,0.2117691,118060.0,118050.0,1.26541903]
[1753722360240,0.28918086,118060.0,118050.0,1.26541903]
[1753722360534,0.28918086,118060.0,118050.0,1.45717649]
[1753722360732,0.36724326,118070.0,118060.0,0.1694059]
[1753722360733,0.2760207,118070.0,118060.0,0.1694059]
[1753722360937,0.2117549,118070.0,118060.0,1.03957029]
[1753722361133,0.05803803,118070.0,118060.0,1.03957029]
[1753722361334,0.2117328,118080.0,118070.0,0.5410416]
[1753722361535,0.1693883,118080.0,118070.0,1.67888479]
[1753722361938,0.2185283,118080.0,118070.0,1.50949319]
[1753722362138,0.2967483,118080.0,118070.0,1.50949319]
[1753722362931,0.3017483,118080.0,118070.0,1.50949319]
[1753722363134,0.5518483,118080.0,118070.0,1.50949319]
[1753722363348,0.5518483,118080.0,118070.0,1.07562416]
[1753722363539,0.5518483,118080.0,118070.0,1.07565471]
[1753722364151,0.5518483,118080.0,118070.0,1.05329]
[1753722364339,0.5518483,118080.0,118070.0,0.37165]
[1753722364534,0.5518483,118080.0,118070.0,1.05329]
[1753722364940,0.5518483,118080.0,118070.0,1.07564703]
[1753722366439,0.5518483,118080.0,118070.0,1.05329]
[1753722367442,0.5518483,118080.0,118070.0,1.05429]
[1753722367443,0.5538483,118080.0,118070.0,1.05429]
[1753722367643,1.02634654,118080.0,118070.0,0.001]
[1753722368046,1.02634654,118080.0,118070.0,0.68248]
[1753722368446,1.19573054,118080.0,118070.0,0.68248]
[1753722368646,1.62955957,118080.0,118070.0,0.001]
[1753722368846,1.19573054,118080.0,118070.0,0.68244]
[1753722370544,0.76190151,118080.0,118070.0,0.68244]
[1753722370745,1.02634654,118080.0,118070.0,0.68244]
[1753722371951,1.04034589,118080.0,118070.0,0.68244]
[1753722372547,1.04034589,118080.0,118070.0,0.001]
[1753722372751,1.04034589,118080.0,118070.0,0.68244]
[1753722373048,1.10118915,118080.0,118070.0,0.68244]
[1753722373452,1.04034589,118080.0,118070.0,0.68244]
[1753722374343,1.10118915,118080.0,118070.0,0.68244]
[1753722375050,1.04034589,118080.0,118070.0,0.68244]
[1753722376547,1.04034589,118080.0,118070.0,0.001]
[1753722376752,1.04034589,118080.0,118070.0,0.68252]
[1753722377554,1.04034589,118080.0,118070.0,0.78492]
[1753722377949,1.10118915,118080.0,118070.0,0.78492]
[1753722379953,1.18094589,118080.0,118070.0,0.85732]
[1753722380358,1.18094589,118080.0,118070.0,1.0077]
[1753722381651,1.24178915,118080.0,118070.0,1.0077]
[1753722384765,1.24178915,118080.0,118070.0,1.05628]
[1753722385063,1.18094589,118080.0,118070.0,1.05628]
[1753722386664,1.24178915,118080.0,118070.0,1.05628]
[1753722388765,0.80796012,118080.0,118070.0,1.05628]
[1753722388966,1.24178915,118080.0,118070.0,1.05628]
[1753722391969,1.24178915,118080.0,118070.0,0.9993786]
[1753722392166,1.24178915,118080.0,118070.0,0.284662]
[1753722392377,1.24178915,118080.0,118070.0,0.9048393]
[1753722392766,1.24178915,118080.0,118070.0,0.8705751]
[1753722392963,1.67561818,118080.0,118070.0,0.6892134]
[1753722393165,1.67561818,118080.0,118070.0,0.489331]
[1753722393364,1.67561818,118080.0,118070.0,0.4263377]
[1753722394064,0.1693916,118070.0,118060.0,0.13520456]
[1753722394262,0.99781998,118070.0,118060.0,0.28594456]
[1753722394471,1.07157524,118070.0,118060.0,0.96734456]
[1753722394664,1.07157524,118070.0,118060.0,0.84480456]
[1753722394865,1.01073198,118070.0,118060.0,0.97890456]
[1753722395065,1.07157524,118070.0,118060.0,1.05286456]
[1753722395468,1.07357524,118070.0,118060.0,1.05386456]
[1753722395978,1.07557524,118070.0,118060.0,1.05386456]
[1753722399183,1.07557524,118070.0,118060.0,0.37246456]
[1753722399388,1.07557524,118070.0,118060.0,1.05386456]
[1753722399579,1.07557524,118070.0,118060.0,0.05298626]
[1753722399781,1.01473198,118070.0,118060.0,0.6824]
[1753722399976,1.01473198,118070.0,118060.0,0.7994]
[1753722399977,1.15533198,118070.0,118060.0,0.7994]
[1753722400184,0.72150295,118070.0,118060.0,1.03524]
[1753722400484,1.15533198,118070.0,118060.0,1.03524]
[1753722401376,1.21617524,118070.0,118060.0,1.03524]
[1753722403088,1.21642209,118070.0,118060.0,1.03524]
[1753722403484,0.1694346,118040.0,118030.0,0.21399678]
[1753722403680,0.99810983,118040.0,118030.0,0.24881905]
[1753722403982,1.07552815,118040.0,118030.0,0.93021905]
[1753722404284,1.07552815,118040.0,118030.0,0.99821905]
[1753722404985,1.07752815,118040.0,118030.0,0.99921905]
[1753722405381,1.07752815,118040.0,118030.0,1.04356905]
[1753722406386,0.26309912,118040.0,118030.0,1.47939808]
[1753722406683,0.26409912,118040.0,118030.0,1.47939808]
[1753722406883,0.26409912,118040.0,118030.0,0.36416905]
[1753722407188,1.07752815,118040.0,118030.0,1.04360905]
[1753722407388,1.07852815,118040.0,118030.0,1.04460905]
[1753722408089,1.07852815,118040.0,118030.0,0.36316905]
[1753722408291,1.07852815,118040.0,118030.0,1.04460905]
[1753722408492,1.07752815,118040.0,118030.0,0.36316905]
[1753722408688,1.07752815,118040.0,118030.0,1.04456905]
[1753722408889,1.07752815,118040.0,118030.0,0.36316905]
[1753722409189,1.07752815,118040.0,118030.0,0.99598905]
[1753722409381,1.07752815,118040.0,118030.0,1.04456905]
[1753722409891,1.07752815,118040.0,118030.0,1.02222741]
[1753722410190,0.64369912,118040.0,118030.0,1.02222741]
[1753722410488,0.31303912,118040.0,118030.0,1.45605644]
[1753722410887,0.31303912,118040.0,118030.0,1.02222741]
[1753722412293,0.42204912,118040.0,118030.0,1.02222741]
[1753722412595,0.64445912,118040.0,118030.0,1.02222741]
[1753722417400,1.07828815,118040.0,118030.0,1.02222741]
[1753722418796,1.13922565,118040.0,118030.0,1.02222741]
[1753722418992,1.07828815,118040.0,118030.0,1.02222741]
[1753722426805,0.64445912,118040.0,118030.0,1.02222741]
[1753722427000,0.64445912,118040.0,118030.0,1.04409224]
[1753722428305,1.07828815,118040.0,118030.0,1.04409224]
[1753722429000,1.07828815,118040.0,118030.0,0.05402224]
[1753722429201,1.07828815,118040.0,118030.0,0.71355741]
[1753722429605,1.07828815,118040.0,118030.0,0.88442741]
[1753722429806,1.07828815,118040.0,118030.0,0.91716741]
[1753722430008,1.07828815,118040.0,118030.0,0.93866818]
[1753722431412,1.07828815,118040.0,118030.0,0.25726818]
[1753722432206,1.07828815,118040.0,118030.0,0.93866818]
[1753722432507,1.07828815,118040.0,118030.0,0.91716741]
[1753722434401,1.07828815,118040.0,118030.0,0.23576741]
[1753722434603,1.07828815,118040.0,118030.0,0.91712741]
[1753722434998,1.07828815,118040.0,118030.0,0.93865183]
[1753722435203,1.21888815,118040.0,118030.0,0.98738741]
[1753722436008,1.21888815,118040.0,118030.0,0.91712741]
[1753722436610,1.21888815,118040.0,118030.0,0.98738741]
[1753722437312,1.21888815,118040.0,118030.0,1.00892312]
[1753722438306,0.78505912,118040.0,118030.0,0.98738741]
[1753722438515,0.64445912,118040.0,118030.0,1.03560741]
[1753722438912,1.2960598,118040.0,118030.0,1.36140775]
[1753722439508,0.46686912,118040.0,118030.0,1.36140775]
[1753722439713,0.57587912,118040.0,118030.0,1.36140775]
[1753722439912,0.26309912,118040.0,118030.0,1.70875303]
[1753722440213,0.1856808,118040.0,118030.0,1.70875303]
[1753722440409,0.1856808,118040.0,118030.0,1.38295269]
[1753722440815,0.1856808,118040.0,118030.0,1.49142075]
[1753722442412,0.2351408,118040.0,118030.0,1.49142075]
[1753722444720,0.2351408,118040.0,118030.0,1.75432075]
[1753722447720,0.2351408,118040.0,118030.0,1.92376975]
[1753722448518,0.2351408,118040.0,118030.0,1.75432075]
[1753722450621,0.2351408,118040.0,118030.0,1.49142075]
[1753722452924,0.1856808,118040.0,118030.0,1.66086965]
[1753722453326,0.2351408,118040.0,118030.0,1.66086965]
[1753722453821,0.1856808,118040.0,118030.0,1.66086965]
[1753722454119,0.30129599,118070.0,118060.0,0.19542]
[1753722454120,0.2117411,118070.0,118060.0,0.19542]
[1753722454334,0.3711611,118070.0,118060.0,1.3838284]
[1753722454525,0.4700811,118070.0,118060.0,1.3838284]
[1753722454719,0.5164811,118070.0,118060.0,1.4275284]
[1753722454911,0.6598244,118070.0,118060.0,0.99326]
[1753722455312,0.6598244,118070.0,118060.0,1.01483025]
[1753722455525,0.6608244,118070.0,118060.0,1.01583025]
[1753722455728,0.6608244,118070.0,118060.0,1.45009865]
[1753722455923,0.6608244,118070.0,118060.0,1.4285284]
[1753722456117,0.6648244,118070.0,118060.0,1.4295284]
[1753722457829,0.6648244,118070.0,118060.0,0.99526]
[1753722461833,0.6648244,118070.0,118060.0,1.4295284]
[1753722466132,0.67940649,118070.0,118060.0,1.4295284]
[1753722466437,1.11367489,118070.0,118060.0,0.68296]
[1753722466737,1.11367489,118070.0,118060.0,0.87768]
[1753722466930,1.11367489,118070.0,118060.0,0.94759]
[1753722467740,1.11367489,118070.0,118060.0,0.99506]
[1753722468730,1.11367489,118070.0,118060.0,0.94759]
[1753722469231,1.11367489,118070.0,118060.0,0.99506]
[1753722469432,1.11367489,118070.0,118060.0,0.94759]
[1753722469935,1.11368175,118070.0,118060.0,0.94759]
[1753722470728,1.11368175,118070.0,118060.0,0.99506]
[1753722471634,1.11368175,118070.0,118060.0,0.94759]
[1753722473439,1.11368175,118070.0,118060.0,0.99419]
[1753722476740,0.99045913,118070.0,118060.0,1.31982473]
[1753722477043,1.00506031,118070.0,118060.0,1.31982473]
[1753722478436,1.00506031,118070.0,118060.0,1.27322473]
[1753722480642,1.00506031,118070.0,118060.0,1.31982473]
[1753722483031,1.00506031,118070.0,118060.0,1.27322473]
[1753722483838,1.00506031,118070.0,118060.0,0.002]
[1753722483839,1.33069504,118070.0,118060.0,0.002]
[1753722484037,1.33069504,118070.0,118060.0,0.6828]
[1753722484548,1.06599781,118070.0,118060.0,0.6828]
[1753722484747,1.17459906,118070.0,118060.0,0.72596]
[1753722484939,1.31519906,118070.0,118060.0,0.72596]
[1753722486043,1.31519906,118070.0,118060.0,0.6828]
[1753722488341,1.31519906,118070.0,118060.0,0.76224]
[1753722488545,0.74181308,118070.0,118060.0,0.99085]
[1753722489940,0.68087558,118070.0,118060.0,0.99085]
[1753722491946,1.11511156,118070.0,118060.0,0.99085]
[1753722493750,1.17604906,118070.0,118060.0,0.99085]
[1753722494346,1.17604906,118070.0,118060.0,0.94425]
[1753722495050,1.11511156,118070.0,118060.0,0.94425]
[1753722495450,1.17604906,118070.0,118060.0,0.94425]
[1753722497054,0.74181308,118070.0,118060.0,0.94425]
[1753722497248,0.74181308,118070.0,118060.0,0.99085]
[1753722497249,1.17604906,118070.0,118060.0,0.99085]
[1753722499952,0.55621308,118070.0,118060.0,1.42508598]
[1753722500253,0.65844308,118070.0,118060.0,1.42508598]
[1753722500455,0.67134558,118070.0,118060.0,1.42508598]
[1753722500845,0.67134558,118070.0,118060.0,0.99085]
[1753722501448,1.10558156,118070.0,118060.0,0.99085]
[1753722502054,1.10558156,118070.0,118060.0,0.94409]
[1753722502458,1.10558156,118070.0,118060.0,0.68264]
[1753722502653,1.24618156,118070.0,118060.0,0.68264]
[1753722502854,0.3186457,118060.0,118050.0,0.0174603]
[1753722503049,1.13317286,118060.0,118050.0,0.6699471]
[1753722503255,1.20936381,118060.0,118050.0,0.6699471]
[1753722503457,1.2738592,118060.0,118050.0,0.6699471]
[1753722504160,1.2738592,118060.0,118050.0,0.6709471]
[1753722504363,1.2758592,118060.0,118050.0,0.6709471]
[1753722504563,1.19966825,118060.0,118050.0,0.6709471]
[1753722505062,0.82622661,118060.0,118050.0,0.7102571]
[1753722505260,1.26046259,118060.0,118050.0,0.8264171]
[1753722505955,1.26046259,118060.0,118050.0,0.7571671]
[1753722506152,1.25846259,118060.0,118050.0,0.6699471]
[1753722506359,1.26246259,118060.0,118050.0,0.6709471]
[1753722506758,1.2798592,118060.0,118050.0,0.6709471]
[1753722508363,1.20366825,118060.0,118050.0,0.6709471]
[1753722510174,0.76943227,118060.0,118050.0,0.6709471]
[1753722510470,1.20366825,118060.0,118050.0,0.6709471]
[1753722511470,1.20366825,118060.0,118050.0,0.6480242]
[1753722511670,1.20366825,118060.0,118050.0,0.5985771]
[1753722511969,1.20366825,118060.0,118050.0,0.5681589]
[1753722512170,1.20366825,118060.0,118050.0,0.5291063]
[1753722513267,1.20366825,118060.0,118050.0,0.001]
[1753722513472,1.20366825,118060.0,118050.0,1e-07]
[1753722513672,1.2798592,118060.0,118050.0,1e-07]
[1753722514166,1.3086752,118060.0,118050.0,1e-07]
[1753722514766,0.70502322,118060.0,118050.0,1e-07]
[1753722514964,1.1392592,118060.0,118050.0,1e-07]
[1753722515169,1.06306825,118060.0,118050.0,1e-07]
[1753722516676,1.12381778,118060.0,118050.0,1e-07]
[1753722517174,1.12397534,118060.0,118050.0,1e-07]
[1753722518271,1.12397534,118060.0,118050.0,0.2525901]
[1753722519475,1.80457534,118060.0,118050.0,0.2525901]
[1753722519869,1.80457534,118060.0,118050.0,0.2995101]
[1753722519870,1.12397534,118060.0,118050.0,0.2995101]
[1753722520471,1.12397534,118060.0,118050.0,0.2525901]
[1753722521180,1.14282573,118060.0,118050.0,0.2525901]
[1753722522580,1.14282573,118060.0,118050.0,0.2070401]
[1753722522881,1.14282573,118060.0,118050.0,1e-07]
[1753722523973,0.3186582,118050.0,118040.0,0.70819]
[1753722524173,0.99274292,118050.0,118040.0,0.70819]
[1753722524373,1.00565929,118050.0,118040.0,0.70819]
[1753722525476,1.00565929,118050.0,118040.0,0.72546092]
[1753722525779,1.00865929,118050.0,118040.0,0.72646092]
[1753722526474,1.00965929,118050.0,118040.0,0.72746092]
[1753722528282,1.07040882,118050.0,118040.0,0.72746092]
[1753722528677,1.00965929,118050.0,118040.0,0.72746092]
[1753722529272,1.07040882,118050.0,118040.0,0.72746092]
[1753722529885,1.00965929,118050.0,118040.0,0.72746092]
[1753722531384,1.07040882,118050.0,118040.0,0.72746092]
[1753722533487,1.07040882,118050.0,118040.0,0.69987092]
[1753722534788,1.07040882,118050.0,118040.0,0.66528252]
[1753722534985,1.07040882,118050.0,118040.0,0.6480116]
[1753722538589,1.07040882,118050.0,118040.0,0.002]
[1753722540497,0.63617284,118050.0,118040.0,0.002]
[1753722540697,1.07040882,118050.0,118040.0,0.002]
[1753722542790,1.07040882,118050.0,118040.0,0.02959]
[1753722545294,1.07040882,118050.0,118040.0,0.002]
[1753722549406,1.21100882,118050.0,118040.0,0.002]
[1753722556607,1.15025929,118050.0,118040.0,0.002]
[1753722556808,1.22645024,118050.0,118040.0,0.002]
[1753722557609,1.15025929,118050.0,118040.0,0.002]
[1753722558708,1.22645024,118050.0,118040.0,0.002]
[1753722558909,1.22645024,118050.0,118030.0,0.71067741]
[1753722558910,0.5473435,118040.0,118030.0,0.71051741]
[1753722559214,1.09275156,118040.0,118030.0,0.71051741]
[1753722559415,1.29419599,118040.0,118030.0,0.71051741]
[1753722559915,1.23335156,118040.0,118030.0,0.71051741]
[1753722560415,1.23435156,118040.0,118030.0,0.71151741]
[1753722560616,1.29519599,118040.0,118030.0,0.71151741]
[1753722562018,1.29719599,118040.0,118030.0,0.71151741]
[1753722564619,0.86296001,118040.0,118030.0,0.71151741]
[1753722564820,1.29719599,118040.0,118030.0,0.73910741]
[1753722565320,1.15659599,118040.0,118030.0,0.73910741]
[1753722566811,1.09575156,118040.0,118030.0,0.7609755]
[1753722569521,1.23645156,118040.0,118030.0,0.7609755]
[1753722569921,1.09575156,118040.0,118030.0,0.7609755]
[1753722570823,1.3131241,118040.0,118030.0,0.7609755]
[1753722574123,0.66151558,118040.0,118030.0,0.7333855]
[1753722574426,1.3131241,118040.0,118030.0,0.7333855]
[1753722577429,1.3131241,118040.0,118030.0,0.71151741]
[1753722578724,1.3131241,118040.0,118030.0,0.7334366]
[1753722579936,1.4538241,118040.0,118030.0,0.7334366]
[1753722581335,1.4538241,118040.0,118030.0,0.7610266]
[1753722582636,1.4538241,118040.0,118030.0,1.08683086]
[1753722582834,1.4538241,118040.0,118030.0,0.7610266]
[1753722584239,1.3131241,118040.0,118030.0,0.7610266]
[1753722584438,0.66151558,118040.0,118030.0,1.08683086]
[1753722584735,0.98731984,118040.0,118030.0,1.10408086]
[1753722585331,0.98731984,118040.0,118030.0,1.08683086]
[1753722590635,0.48273558,118040.0,118030.0,1.10408086]
[1753722591141,0.33339558,118040.0,118030.0,1.10408086]
[1753722591439,0.65919984,118040.0,118030.0,1.10408086]
[1753722591638,0.76480984,118040.0,118030.0,1.10408086]
[1753722591938,0.91595984,118040.0,118030.0,1.10408086]
[1753722592141,0.59015558,118040.0,118030.0,1.10408086]
[1753722592633,0.65560558,118040.0,118030.0,1.10408086]
[1753722595842,0.98140984,118040.0,118030.0,1.10408086]
[1753722596842,0.98140984,118040.0,118030.0,1.08216167]
[1753722599844,0.98140984,118040.0,118030.0,1.06491167]
[1753722600433,1.3072141,118040.0,118030.0,1.06491167]
[1753722600840,1.3072141,118040.0,118030.0,0.73910741]
[1753722602538,1.3072141,118040.0,118030.0,0.71151741]
[1753722603144,1.3072141,118040.0,118030.0,0.73910741]
[1753722605340,1.3072141,118040.0,118030.0,1.06491167]
[1753722606640,1.3072141,118040.0,118030.0,1.08682241]
[1753722608536,0.65560558,118040.0,118030.0,1.10407241]
[1753722608948,0.47592558,118040.0,118030.0,1.10407241]
[1753722610449,0.33248558,118040.0,118030.0,1.10407241]
[1753722610952,0.33248558,118040.0,118030.0,1.38199593]
[1753722611150,0.33248558,118040.0,118030.0,1.23537286]
[1753722611349,0.33248558,118040.0,118030.0,1.21254833]
[1753722612654,0.38029558,118040.0,118030.0,1.21254833]
[1753722612848,0.55765558,118040.0,118030.0,1.21254833]
[1753722613153,0.65460558,118040.0,118030.0,1.21254833]
[1753722618959,0.65460558,118040.0,118030.0,0.76101815]
[1753722619161,1.08888576,118040.0,118030.0,0.73318815]
[1753722619553,1.08888576,118040.0,118030.0,0.05306815]
[1753722619747,1.08888576,118040.0,118030.0,0.73318815]
[1753722620761,1.05738576,118040.0,118030.0,0.73318815]
[1753722623661,1.05738576,118040.0,118030.0,0.76077815]
[1753722624369,1.05788576,118040.0,118030.0,0.76077815]
[1753722632865,0.65569558,118040.0,118030.0,0.76077815]
[1753722634571,0.79639558,118040.0,118030.0,0.76077815]
[1753722634773,0.98147465,118040.0,118030.0,1.08655722]
[1753722637373,0.98147465,118040.0,118030.0,1.08643722]
[1753722637760,1.30725372,118040.0,118030.0,1.08643722]
[1753722637964,0.65569558,118040.0,118030.0,1.08643722]
[1753722638174,0.98147465,118040.0,118030.0,1.08643722]
[1753722638374,0.65569558,118040.0,118030.0,1.41221629]
[1753722638573,0.47833558,118040.0,118030.0,1.42946629]
[1753722638764,0.47833558,118040.0,118030.0,1.10368722]
[1753722639165,0.65219558,118040.0,118030.0,1.10368722]
[1753722640169,0.58089558,118040.0,118030.0,1.42946629]
[1753722640365,0.47833558,118040.0,118030.0,1.42946629]
[1753722640771,0.47833558,118040.0,118030.0,1.10368722]
[1753722640971,0.65219558,118040.0,118030.0,1.10368722]
[1753722641870,0.97797465,118040.0,118030.0,1.10368722]
[1753722642276,0.65219558,118040.0,118030.0,1.10368722]
[1753722642870,0.65219558,118040.0,118030.0,1.21222754]
[1753722646692,0.65219558,118040.0,118030.0,1.1903168]
[1753722649694,0.65219558,118040.0,118030.0,1.21247524]
[1753722651188,0.71304001,118040.0,118030.0,1.1903168]
[1753722654498,0.65219558,118040.0,118030.0,1.1903168]
[1753722654997,0.65219558,118040.0,118030.0,1.2124736]
[1753722656399,0.65219558,118040.0,118030.0,1.22980361]
[1753722658000,0.56761558,118040.0,118030.0,1.39925141]
[1753722658202,0.64156558,118040.0,118030.0,1.39925141]
[1753722658604,0.64120019,118040.0,118030.0,1.39925095]
[1753722659206,0.64120019,118040.0,118030.0,1.22980315]
[1753722663509,0.64120019,118040.0,118030.0,1.49270315]
[1753722664208,0.64120019,118040.0,118030.0,1.66215115]
[1753722664404,0.64120019,118040.0,118030.0,1.49270315]
[1753722664801,0.64120019,118040.0,118030.0,1.70977712]
[1753722665001,0.64120019,118040.0,118030.0,1.38408044]
[1753722665408,0.64120019,118040.0,118030.0,1.40695781]
[1753722665801,0.64120019,118040.0,118030.0,1.38408044]
[1753722666501,0.64120019,118040.0,118030.0,1.40695781]
[1753722667511,0.64120019,118040.0,118030.0,1.38408044]
[1753722668112,0.64120019,118040.0,118030.0,1.36683044]
[1753722669207,0.67424019,118040.0,118030.0,1.36683044]
[1753722669408,0.67424019,118040.0,118030.0,1.38408044]
[1753722671315,0.99993687,118040.0,118030.0,0.68683044]
[1753722671512,0.99993687,118040.0,118030.0,1.36655044]
[1753722672205,0.98554352,118040.0,118030.0,1.36660802]
[1753722672512,0.99989249,118040.0,118030.0,1.36660802]
[1753722675515,0.99989249,118040.0,118030.0,1.10370802]
[1753722681525,0.9808931,118040.0,118030.0,1.10370802]
[1753722681818,0.9808931,118040.0,118030.0,0.07070134]
[1753722682023,1.30658978,118040.0,118030.0,0.07070134]
[1753722682224,1.30658978,118040.0,118030.0,0.75030134]
[1753722684421,1.30658978,118040.0,118030.0,0.72808742]
[1753722684918,1.30658978,118040.0,118030.0,0.75031971]
[1753722685826,1.30658978,118040.0,118030.0,0.72808742]
[1753722686220,1.30658978,118040.0,118030.0,0.7503165]
[1753722686420,1.30658978,118040.0,118030.0,0.72808742]
[1753722686821,1.36743421,118040.0,118030.0,0.72808742]
[1753722689218,1.30658978,118040.0,118030.0,0.72808742]
[1753722689522,1.36743421,118040.0,118030.0,0.72808742]
[1753722689928,1.30658978,118040.0,118030.0,1.0537841]
[1753722692331,1.30658978,118040.0,118030.0,0.72808742]
[1753722694725,1.30658978,118040.0,118030.0,0.75567742]
[1753722694929,0.9808931,118040.0,118030.0,1.0813741]
[1753722697425,1.30658978,118040.0,118030.0,1.0813741]
[1753722697628,1.30658978,118040.0,118030.0,0.75567742]
[1753722699022,0.65519642,118040.0,118030.0,0.75567742]
[1753722699223,0.65524642,118040.0,118030.0,1.0986241]
[1753722699429,0.65524642,118040.0,118030.0,1.44657286]
[1753722700739,0.65524642,118040.0,118030.0,1.22944109]
[1753722704445,0.48750642,118040.0,118030.0,1.22944109]
[1753722704642,0.65829642,118040.0,118030.0,1.22944109]
[1753722709342,0.79899642,118040.0,118030.0,1.22944109]
[1753722709542,0.65829642,118040.0,118030.0,0.7951795]
[1753722709755,1.09255801,118040.0,118030.0,0.7779295]
[1753722710947,1.09255801,118040.0,118030.0,0.75567742]
[1753722711544,1.09255801,118040.0,118030.0,0.77793963]
[1753722711947,1.09255801,118040.0,118030.0,0.75034963]
[1753722713243,1.09255801,118040.0,118030.0,0.77793963]
[1753722714748,1.09255801,118040.0,118030.0,0.04848742]
[1753722715051,1.09255801,118040.0,118030.0,0.72776742]
[1753722715854,1.09255801,118040.0,118030.0,0.75535742]
[1753722716347,0.65829642,118040.0,118030.0,0.75535742]
[1753722716642,0.65829642,118040.0,118030.0,1.18961901]
[1753722716848,0.65829642,118040.0,118030.0,1.20686901]
[1753722718840,0.65829642,118040.0,118030.0,1.22913143]
[1753722719045,0.34661642,118040.0,118030.0,1.22913143]
[1753722719550,0.6568211,118040.0,118030.0,1.2291317]
[1753722720742,0.3465411,118040.0,118030.0,1.2291317]
[1753722720947,0.21974715,118040.0,118030.0,1.2291317]
[1753722721244,0.26763715,118040.0,118030.0,1.2291317]
[1753722722555,0.26763715,118040.0,118030.0,1.4920317]
[1753722723548,0.36536715,118040.0,118030.0,1.4920317]
[1753722724658,0.48591715,118040.0,118030.0,1.4920317]
[1753722725062,1.01217874,118040.0,118030.0,1.01293011]
[1753722726757,0.57791715,118040.0,118030.0,1.01293011]
[1753722727857,1.01217874,118040.0,118030.0,1.01293011]
[1753722728658,1.01217874,118040.0,118030.0,0.77762011]
[1753722730859,0.57791715,118040.0,118030.0,0.77762011]
[1753722731963,1.10250906,118040.0,118030.0,0.77762011]
[1753722732362,1.10250906,118040.0,118030.0,0.75535742]
[1753722734562,1.10250906,118040.0,118030.0,0.75519742]
[1753722734757,0.66824747,118040.0,118030.0,0.75519742]
[1753722734963,0.66824747,118040.0,118030.0,0.77745656]
[1753722736464,1.10250906,118040.0,118030.0,0.77745656]
[1753722736867,1.16335349,118040.0,118030.0,0.75519742]
[1753722737764,0.7290919,118040.0,118030.0,0.75519742]
[1753722739867,0.66824747,118040.0,118030.0,0.75519742]
[1753722740869,0.66824747,118040.0,118030.0,1.20670901]
[1753722741770,0.7290919,118040.0,118030.0,1.20670901]
[1753722741959,0.5580419,118040.0,118030.0,1.20670901]
[1753722742269,0.35796747,118040.0,118030.0,1.20670901]
[1753722742664,0.66710747,118040.0,118030.0,1.20670901]
[1753722746072,0.35796747,118040.0,118030.0,1.20670901]
[1753722746265,0.35796747,118040.0,118030.0,0.52758901]
[1753722746467,0.66710747,118040.0,118030.0,0.75507742]
[1753722746669,1.16221349,118040.0,118030.0,0.72748742]
[1753722746864,1.10136906,118040.0,118030.0,0.74975206]
[1753722747266,1.10136906,118040.0,118030.0,0.77734206]
[1753722750077,0.66710747,118040.0,118030.0,1.22885365]
[1753722750571,0.50018747,118040.0,118030.0,1.38105215]
[1753722750777,0.21974715,118040.0,118030.0,1.42117297]
[1753722750966,0.21974715,118040.0,118030.0,1.66120215]
[1753722751366,0.21974715,118040.0,118030.0,1.68407297]
[1753722751675,0.21874715,118040.0,118030.0,1.68307297]
[1753722751975,0.21974715,118040.0,118030.0,1.68407297]
[1753722752473,0.21774715,118040.0,118030.0,1.68407297]
[1753722752674,0.21874715,118040.0,118030.0,1.68507297]
[1753722754379,0.26728715,118040.0,118030.0,1.68507297]
[1753722774698,0.35899715,118040.0,118030.0,1.68507297]
[1753722778301,0.47870715,118040.0,118030.0,1.68507297]
[1753722778502,0.47870715,118040.0,118030.0,1.51562447]
[1753722778703,0.47870715,118040.0,118030.0,1.23547447]
[1753722778704,0.50278715,118040.0,118030.0,1.23547447]
[1753722778904,0.57257715,118040.0,118030.0,1.2366802]
[1753722779403,0.57257715,118040.0,118030.0,1.2539302]
[1753722781996,0.57257715,118040.0,118030.0,0.5300902]
[1753722782296,1.00683874,118040.0,118030.0,0.75159779]
[1753722782495,1.09716906,118040.0,118030.0,0.75159779]
[1753722783699,1.09716906,118040.0,118030.0,0.73306205]
[1753722785491,1.08289541,118040.0,118030.0,0.73306205]
[1753722785702,1.08289541,118040.0,118030.0,0.71079741]
[1753722786606,1.09894198,118040.0,118030.0,0.71079741]
[1753722786806,1.09894198,118040.0,118030.0,0.73289973]
[1753722788212,1.09894198,118040.0,118030.0,0.71079741]
[1753722790002,1.09894198,118040.0,118030.0,0.73277983]
[1753722790408,1.53320357,118040.0,118030.0,0.71079741]
[1753722790603,1.09894198,118040.0,118030.0,0.73277782]
[1753722790908,1.09894198,118040.0,118030.0,0.71079741]
[1753722801013,1.0990194,118040.0,118030.0,0.71079741]
[1753722803112,1.0990194,118040.0,118030.0,0.03215741]
[1753722803322,1.53328099,118040.0,118030.0,0.57310151]
[1753722803618,1.53328099,118040.0,118030.0,0.48355241]
[1753722804014,0.231578,118030.0,118020.0,0.77257307]